Workbook

Sheet Расход газа
B4: Суточная ведомость Расхода газа | M4: Линия потребления газа
B6: Дата | C6: БПТПГ (УПГ-М) | D6: FT00301 (входной узел учета ГРП) | E6: ГРП-1 | F6: ГРП-2 | G6: ГРП-3 | H6: ГРП-4 | I6: ГРП-5 | J6: Суммарный расход ГРП | K6: Общий входной расход | L6: Сводка УКПГ ЦПГ-1
B7: Время 05:00 | C7: Сводка УКПГ ЦПГ-1 | E7: Счетчик газа вихревой СВГ.М-800 | F7: Счетчик газа вихревой СВГ.М-800 | G7: Счетчик газа вихревой СВГ.М-2500 | H7: Счетчик газа вихревой СВГ.М-400 | I7: Счетчик газа вихревой СВГ.М-800 | J7: м3/сутки | K7: Счетчик газа вихревой СВГ.М-1600 | L7: м3/сутки | M7: Урал №1,№2 №3, №4 | N7: ПАЭС №3, №4 | O7: Сатурн №6, №7 | P7: МоторСич №9, №10 | Q7: ЭГЭС №11, №12
B8: 2024-05-01 | C8: 0 | D8: 915342 | E8: 117564 | F8: 767413 | G8: 446047 | H8: 0 | I8: 224791 | J8: =SUM(C8,E9:I9) -> 496946 | L8: 477128 | M8: =IF(B8<TODAY(),_xlfn.IFS(ISNUMBER(F8),"ГРП-2 (в работе)",ISBLANK(F8),"ГРП-2 (в резерве)",ISTEXT(F8),"ГРП-2 (в ремонте)")," ") -> ГРП-2 (в работе) | N8: =IF(B8<TODAY(),_xlfn.IFS(ISNUMBER(E8),"ГРП-1 (в работе)",ISBLANK(E8),"ГРП-1 (в резерве)",ISTEXT(E8),"ГРП-1 (в ремонте)")," ") -> ГРП-1 (в работе) | O8: =IF(B8<TODAY(),_xlfn.IFS(ISNUMBER(G8),"ГРП-3 (в работе)",ISTEXT(G8),"ГРП-3 (в ремонте)",C8>0,"УПТПГ (в работе)",ISBLANK(G8),"ГРП-3 (в резерве)")," ") -> ГРП-3 (в работе) | P8: =IF(B8<TODAY(),_xlfn.IFS(ISNUMBER(H8),"ГРП-4 (в работе)",ISBLANK(H8),"ГРП-4 (в резерве)",ISTEXT(H8),"ГРП-4 (в ремонте)")," ") -> ГРП-4 (в работе) | Q8: =IF(B8<TODAY(),_xlfn.IFS(ISNUMBER(I8),"ГРП-5 (в работе)",ISBLANK(I8),"ГРП-5 (в резерве)",ISTEXT(I8),"ГРП-5 (в ремонте)")," ") -> ГРП-5 (в работе)
D9: 477128 | E9: 79863 | F9: 202225 | G9: 124086 | H9: 0 | I9: 90772
B10: 2024-05-02 | C10: 0 | D10: 1419293 | E10: 158656 | F10: 972607 | G10: 565142 | H10: 0 | I10: 360551 | J10: =SUM(C10,E11:I11) -> 501141 | L10: 503951 | M10: =IF(B10<TODAY(),_xlfn.IFS(ISNUMBER(F10),"ГРП-2 (в работе)",ISBLANK(F10),"ГРП-2 (в резерве)",ISTEXT(F10),"ГРП-2 (в ремонте)")," ") -> ГРП-2 (в работе) | N10: =IF(B10<TODAY(),_xlfn.IFS(ISNUMBER(E10),"ГРП-1 (в работе)",ISBLANK(E10),"ГРП-1 (в резерве)",ISTEXT(E10),"ГРП-1 (в ремонте)")," ") -> ГРП-1 (в работе) | O10: =IF(B10<TODAY(),_xlfn.IFS(ISNUMBER(G10),"ГРП-3 (в работе)",ISTEXT(G10),"ГРП-3 (в ремонте)",C10>0,"УПТПГ (в работе)",ISBLANK(G10),"ГРП-3 (в резерве)")," ") -> ГРП-3 (в работе) | P10: =IF(B10<TODAY(),_xlfn.IFS(ISNUMBER(H10),"ГРП-4 (в работе)",ISBLANK(H10),"ГРП-4 (в резерве)",ISTEXT(H10),"ГРП-4 (в ремонте)")," ") -> ГРП-4 (в работе) | Q10: =IF(B10<TODAY(),_xlfn.IFS(ISNUMBER(I10),"ГРП-5 (в работе)",ISBLANK(I10),"ГРП-5 (в резерве)",ISTEXT(I10),"ГРП-5 (в ремонте)")," ") -> ГРП-5 (в работе)
D11: =IFERROR(IF(ISNUMBER(D10),D10-D8,0),0) -> 503951 | E11: 41092 | F11: 205194 | G11: 119095 | H11: =IFERROR(IF(ISNUMBER(H10),H10-H8,0),0) -> 0 | I11: =IFERROR(IF(ISNUMBER(I10),I10-I8,0),0) -> 135760 | K11: =IF(ISNUMBER(K10),K10-K8,0) -> 0
B12: 2024-05-03 | C12: 0 | D12: 1946952 | E12: 199333 | F12: 1176020 | G12: 685737 | H12: 0 | I12: 518225 | J12: =SUM(C12,E13:I13) -> 522359 | L12: 527659 | M12: =IF(B12<TODAY(),_xlfn.IFS(ISNUMBER(F12),"ГРП-2 (в работе)",ISBLANK(F12),"ГРП-2 (в резерве)",ISTEXT(F12),"ГРП-2 (в ремонте)")," ") -> ГРП-2 (в работе) | N12: =IF(B12<TODAY(),_xlfn.IFS(ISNUMBER(E12),"ГРП-1 (в работе)",ISBLANK(E12),"ГРП-1 (в резерве)",ISTEXT(E12),"ГРП-1 (в ремонте)")," ") -> ГРП-1 (в работе) | O12: =IF(B12<TODAY(),_xlfn.IFS(ISNUMBER(G12),"ГРП-3 (в работе)",ISTEXT(G12),"ГРП-3 (в ремонте)",C12>0,"УПТПГ (в работе)",ISBLANK(G12),"ГРП-3 (в резерве)")," ") -> ГРП-3 (в работе) | P12: =IF(B12<TODAY(),_xlfn.IFS(ISNUMBER(H12),"ГРП-4 (в работе)",ISBLANK(H12),"ГРП-4 (в резерве)",ISTEXT(H12),"ГРП-4 (в ремонте)")," ") -> ГРП-4 (в работе) | Q12: =IF(B12<TODAY(),_xlfn.IFS(ISNUMBER(I12),"ГРП-5 (в работе)",ISBLANK(I12),"ГРП-5 (в резерве)",ISTEXT(I12),"ГРП-5 (в ремонте)")," ") -> ГРП-5 (в работе) | R12: Использовать только один раз, в новом
D13: =IFERROR(IF(ISNUMBER(D12),D12-D10,0),0) -> 527659 | E13: =IFERROR(IF(ISNUMBER(E12),E12-E10,0),0) -> 40677 | F13: =IFERROR(IF(ISNUMBER(F12),F12-F10,0),0) -> 203413 | G13: 120595 | H13: 0 | I13: 157674 | K13: =IF(ISNUMBER(K12),K12-K10,0) -> 0 | R13: документе на следующий месяц.
B14: 2024-05-04 | C14: 0 | D14: 2485562 | E14: 239911 | F14: 1383986 | G14: 809948 | H14: 0 | I14: 678922 | J14: =SUM(C14,E15:I15) -> 533452 | L14: 538487 | M14: =IF(B14<TODAY(),_xlfn.IFS(ISNUMBER(F14),"ГРП-2 (в работе)",ISBLANK(F14),"ГРП-2 (в резерве)",ISTEXT(F14),"ГРП-2 (в ремонте)")," ") -> ГРП-2 (в работе) | N14: =IF(B14<TODAY(),_xlfn.IFS(ISNUMBER(E14),"ГРП-1 (в работе)",ISBLANK(E14),"ГРП-1 (в резерве)",ISTEXT(E14),"ГРП-1 (в ремонте)")," ") -> ГРП-1 (в работе) | O14: =IF(B14<TODAY(),_xlfn.IFS(ISNUMBER(G14),"ГРП-3 (в работе)",ISTEXT(G14),"ГРП-3 (в ремонте)",C14>0,"УПТПГ (в работе)",ISBLANK(G14),"ГРП-3 (в резерве)")," ") -> ГРП-3 (в работе) | P14: =IF(B14<TODAY(),_xlfn.IFS(ISNUMBER(H14),"ГРП-4 (в работе)",ISBLANK(H14),"ГРП-4 (в резерве)",ISTEXT(H14),"ГРП-4 (в ремонте)")," ") -> ГРП-4 (в работе) | Q14: =IF(B14<TODAY(),_xlfn.IFS(ISNUMBER(I14),"ГРП-5 (в работе)",ISBLANK(I14),"ГРП-5 (в резерве)",ISTEXT(I14),"ГРП-5 (в ремонте)")," ") -> ГРП-5 (в работе)
D15: =IFERROR(IF(ISNUMBER(D14),D14-D12,0),0) -> 538610 | E15: =IFERROR(IF(ISNUMBER(E14),E14-E12,0),0) -> 40578 | F15: =IFERROR(IF(ISNUMBER(F14),F14-F12,0),0) -> 207966 | G15: 124211 | H15: 0 | I15: 160697 | K15: =IF(ISNUMBER(K14),K14-K12,0) -> 0
B16: 2024-05-05 | C16: 0 | D16: 3026378 | E16: 283018 | F16: 1592057 | G16: 934295 | H16: 0 | I16: 838838 | J16: =SUM(C16,E17:I17) -> 535441 | L16: 540816 | M16: =IF(B16<TODAY(),_xlfn.IFS(ISNUMBER(F16),"ГРП-2 (в работе)",ISBLANK(F16),"ГРП-2 (в резерве)",ISTEXT(F16),"ГРП-2 (в ремонте)")," ") -> ГРП-2 (в работе) | N16: =IF(B16<TODAY(),_xlfn.IFS(ISNUMBER(E16),"ГРП-1 (в работе)",ISBLANK(E16),"ГРП-1 (в резерве)",ISTEXT(E16),"ГРП-1 (в ремонте)")," ") -> ГРП-1 (в работе) | O16: =IF(B16<TODAY(),_xlfn.IFS(ISNUMBER(G16),"ГРП-3 (в работе)",ISTEXT(G16),"ГРП-3 (в ремонте)",C16>0,"УПТПГ (в работе)",ISBLANK(G16),"ГРП-3 (в резерве)")," ") -> ГРП-3 (в работе) | P16: =IF(B16<TODAY(),_xlfn.IFS(ISNUMBER(H16),"ГРП-4 (в работе)",ISBLANK(H16),"ГРП-4 (в резерве)",ISTEXT(H16),"ГРП-4 (в ремонте)")," ") -> ГРП-4 (в работе) | Q16: =IF(B16<TODAY(),_xlfn.IFS(ISNUMBER(I16),"ГРП-5 (в работе)",ISBLANK(I16),"ГРП-5 (в резерве)",ISTEXT(I16),"ГРП-5 (в ремонте)")," ") -> ГРП-5 (в работе)
D17: =IFERROR(IF(ISNUMBER(D16),D16-D14,0),0) -> 540816 | E17: =IFERROR(IF(ISNUMBER(E16),E16-E14,0),0) -> 43107 | F17: 208071 | G17: 124347 | H17: 0 | I17: 159916 | K17: =IF(ISNUMBER(K16),K16-K14,0) -> 0
B18: 2024-05-06 | C18: 0 | D18: 3545598 | E18: 324278 | F18: 1804015 | G18: 1033137 | H18: 0 | I18: 996851 | J18: =SUM(C18,E19:I19) -> 510073 | L18: 519220 | M18: =IF(B18<TODAY(),_xlfn.IFS(ISNUMBER(F18),"ГРП-2 (в работе)",ISBLANK(F18),"ГРП-2 (в резерве)",ISTEXT(F18),"ГРП-2 (в ремонте)")," ") -> ГРП-2 (в работе) | N18: =IF(B18<TODAY(),_xlfn.IFS(ISNUMBER(E18),"ГРП-1 (в работе)",ISBLANK(E18),"ГРП-1 (в резерве)",ISTEXT(E18),"ГРП-1 (в ремонте)")," ") -> ГРП-1 (в работе) | O18: =IF(B18<TODAY(),_xlfn.IFS(ISNUMBER(G18),"ГРП-3 (в работе)",ISTEXT(G18),"ГРП-3 (в ремонте)",C18>0,"УПТПГ (в работе)",ISBLANK(G18),"ГРП-3 (в резерве)")," ") -> ГРП-3 (в работе) | P18: =IF(B18<TODAY(),_xlfn.IFS(ISNUMBER(H18),"ГРП-4 (в работе)",ISBLANK(H18),"ГРП-4 (в резерве)",ISTEXT(H18),"ГРП-4 (в ремонте)")," ") -> ГРП-4 (в работе) | Q18: =IF(B18<TODAY(),_xlfn.IFS(ISNUMBER(I18),"ГРП-5 (в работе)",ISBLANK(I18),"ГРП-5 (в резерве)",ISTEXT(I18),"ГРП-5 (в ремонте)")," ") -> ГРП-5 (в работе)
D19: =IFERROR(IF(ISNUMBER(D18),D18-D16,0),0) -> 519220 | E19: =IFERROR(IF(ISNUMBER(E18),E18-E16,0),0) -> 41260 | F19: 211958 | G19: 98842 | H19: 0 | I19: 158013 | K19: =IF(ISNUMBER(K18),K18-K16,0) -> 0
B20: 2024-05-07 | C20: 0 | D20: 4035779 | E20: 369130 | F20: 2017105 | G20: 1093764 | H20: 0 | I20: 1161903 | J20: =SUM(C20,E21:I21) -> 483621 | L20: 490181 | M20: =IF(B20<TODAY(),_xlfn.IFS(ISNUMBER(F20),"ГРП-2 (в работе)",ISBLANK(F20),"ГРП-2 (в резерве)",ISTEXT(F20),"ГРП-2 (в ремонте)")," ") -> ГРП-2 (в работе) | N20: =IF(B20<TODAY(),_xlfn.IFS(ISNUMBER(E20),"ГРП-1 (в работе)",ISBLANK(E20),"ГРП-1 (в резерве)",ISTEXT(E20),"ГРП-1 (в ремонте)")," ") -> ГРП-1 (в работе) | O20: =IF(B20<TODAY(),_xlfn.IFS(ISNUMBER(G20),"ГРП-3 (в работе)",ISTEXT(G20),"ГРП-3 (в ремонте)",C20>0,"УПТПГ (в работе)",ISBLANK(G20),"ГРП-3 (в резерве)")," ") -> ГРП-3 (в работе) | P20: =IF(B20<TODAY(),_xlfn.IFS(ISNUMBER(H20),"ГРП-4 (в работе)",ISBLANK(H20),"ГРП-4 (в резерве)",ISTEXT(H20),"ГРП-4 (в ремонте)")," ") -> ГРП-4 (в работе) | Q20: =IF(B20<TODAY(),_xlfn.IFS(ISNUMBER(I20),"ГРП-5 (в работе)",ISBLANK(I20),"ГРП-5 (в резерве)",ISTEXT(I20),"ГРП-5 (в ремонте)")," ") -> ГРП-5 (в работе)
D21: =IFERROR(IF(ISNUMBER(D20),D20-D18,0),0) -> 490181 | E21: =IFERROR(IF(ISNUMBER(E20),E20-E18,0),0) -> 44852 | F21: 213090 | G21: 60627 | H21: 0 | I21: 165052 | K21: =IF(ISNUMBER(K20),K20-K18,0) -> 0
B22: 2024-05-08 | C22: 0 | D22: 4518917 | E22: 411480 | F22: 2229115 | G22: 1153804 | H22: 0 | I22: 1325019 | J22: =SUM(C22,E23:I23) -> 477516 | L22: 483138 | M22: =IF(B22<TODAY(),_xlfn.IFS(ISNUMBER(F22),"ГРП-2 (в работе)",ISBLANK(F22),"ГРП-2 (в резерве)",ISTEXT(F22),"ГРП-2 (в ремонте)")," ") -> ГРП-2 (в работе) | N22: =IF(B22<TODAY(),_xlfn.IFS(ISNUMBER(E22),"ГРП-1 (в работе)",ISBLANK(E22),"ГРП-1 (в резерве)",ISTEXT(E22),"ГРП-1 (в ремонте)")," ") -> ГРП-1 (в работе) | O22: =IF(B22<TODAY(),_xlfn.IFS(ISNUMBER(G22),"ГРП-3 (в работе)",ISTEXT(G22),"ГРП-3 (в ремонте)",C22>0,"УПТПГ (в работе)",ISBLANK(G22),"ГРП-3 (в резерве)")," ") -> ГРП-3 (в работе) | P22: =IF(B22<TODAY(),_xlfn.IFS(ISNUMBER(H22),"ГРП-4 (в работе)",ISBLANK(H22),"ГРП-4 (в резерве)",ISTEXT(H22),"ГРП-4 (в ремонте)")," ") -> ГРП-4 (в работе) | Q22: =IF(B22<TODAY(),_xlfn.IFS(ISNUMBER(I22),"ГРП-5 (в работе)",ISBLANK(I22),"ГРП-5 (в резерве)",ISTEXT(I22),"ГРП-5 (в ремонте)")," ") -> ГРП-5 (в работе)
D23: =IFERROR(IF(ISNUMBER(D22),D22-D20,0),0) -> 483138 | E23: =IFERROR(IF(ISNUMBER(E22),E22-E20,0),0) -> 42350 | F23: 212010 | G23: 60040 | H23: 0 | I23: 163116 | K23: =IF(ISNUMBER(K22),K22-K20,0) -> 0
B24: 2024-05-09 | C24: 0 | J24: =SUM(C24,E25:I25) -> 0 | M24: =IF(B24<TODAY(),_xlfn.IFS(ISNUMBER(F24),"ГРП-2 (в работе)",ISBLANK(F24),"ГРП-2 (в резерве)",ISTEXT(F24),"ГРП-2 (в ремонте)")," ") ->  | N24: =IF(B24<TODAY(),_xlfn.IFS(ISNUMBER(E24),"ГРП-1 (в работе)",ISBLANK(E24),"ГРП-1 (в резерве)",ISTEXT(E24),"ГРП-1 (в ремонте)")," ") ->  | O24: =IF(B24<TODAY(),_xlfn.IFS(ISNUMBER(G24),"ГРП-3 (в работе)",ISTEXT(G24),"ГРП-3 (в ремонте)",C24>0,"УПТПГ (в работе)",ISBLANK(G24),"ГРП-3 (в резерве)")," ") ->  | P24: =IF(B24<TODAY(),_xlfn.IFS(ISNUMBER(H24),"ГРП-4 (в работе)",ISBLANK(H24),"ГРП-4 (в резерве)",ISTEXT(H24),"ГРП-4 (в ремонте)")," ") ->  | Q24: =IF(B24<TODAY(),_xlfn.IFS(ISNUMBER(I24),"ГРП-5 (в работе)",ISBLANK(I24),"ГРП-5 (в резерве)",ISTEXT(I24),"ГРП-5 (в ремонте)")," ") -> 
D25: =IFERROR(IF(ISNUMBER(D24),D24-D22,0),0) -> 0 | E25: =IFERROR(IF(ISNUMBER(E24),E24-E22,0),0) -> 0 | F25: 0 | G25: 0 | H25: 0 | I25: 0 | K25: =IF(ISNUMBER(K24),K24-K22,0) -> 0
B26: 2024-05-10 | C26: 0 | J26: =SUM(C26,E27:I27) -> 0 | M26: =IF(B26<TODAY(),_xlfn.IFS(ISNUMBER(F26),"ГРП-2 (в работе)",ISBLANK(F26),"ГРП-2 (в резерве)",ISTEXT(F26),"ГРП-2 (в ремонте)")," ") ->  | N26: =IF(B26<TODAY(),_xlfn.IFS(ISNUMBER(E26),"ГРП-1 (в работе)",ISBLANK(E26),"ГРП-1 (в резерве)",ISTEXT(E26),"ГРП-1 (в ремонте)")," ") ->  | O26: =IF(B26<TODAY(),_xlfn.IFS(ISNUMBER(G26),"ГРП-3 (в работе)",ISTEXT(G26),"ГРП-3 (в ремонте)",C26>0,"УПТПГ (в работе)",ISBLANK(G26),"ГРП-3 (в резерве)")," ") ->  | P26: =IF(B26<TODAY(),_xlfn.IFS(ISNUMBER(H26),"ГРП-4 (в работе)",ISBLANK(H26),"ГРП-4 (в резерве)",ISTEXT(H26),"ГРП-4 (в ремонте)")," ") ->  | Q26: =IF(B26<TODAY(),_xlfn.IFS(ISNUMBER(I26),"ГРП-5 (в работе)",ISBLANK(I26),"ГРП-5 (в резерве)",ISTEXT(I26),"ГРП-5 (в ремонте)")," ") -> 
D27: =IFERROR(IF(ISNUMBER(D26),D26-D24,0),0) -> 0 | E27: =IFERROR(IF(ISNUMBER(E26),E26-E24,0),0) -> 0 | F27: 0 | G27: 0 | H27: 0 | I27: 0 | K27: =IF(ISNUMBER(K26),K26-K24,0) -> 0
B28: 2024-05-11 | C28: 0 | J28: =SUM(C28,E29:I29) -> 0 | M28: =IF(B28<TODAY(),_xlfn.IFS(ISNUMBER(F28),"ГРП-2 (в работе)",ISBLANK(F28),"ГРП-2 (в резерве)",ISTEXT(F28),"ГРП-2 (в ремонте)")," ") ->  | N28: =IF(B28<TODAY(),_xlfn.IFS(ISNUMBER(E28),"ГРП-1 (в работе)",ISBLANK(E28),"ГРП-1 (в резерве)",ISTEXT(E28),"ГРП-1 (в ремонте)")," ") ->  | O28: =IF(B28<TODAY(),_xlfn.IFS(ISNUMBER(G28),"ГРП-3 (в работе)",ISTEXT(G28),"ГРП-3 (в ремонте)",C28>0,"УПТПГ (в работе)",ISBLANK(G28),"ГРП-3 (в резерве)")," ") ->  | P28: =IF(B28<TODAY(),_xlfn.IFS(ISNUMBER(H28),"ГРП-4 (в работе)",ISBLANK(H28),"ГРП-4 (в резерве)",ISTEXT(H28),"ГРП-4 (в ремонте)")," ") ->  | Q28: =IF(B28<TODAY(),_xlfn.IFS(ISNUMBER(I28),"ГРП-5 (в работе)",ISBLANK(I28),"ГРП-5 (в резерве)",ISTEXT(I28),"ГРП-5 (в ремонте)")," ") -> 
D29: =IFERROR(IF(ISNUMBER(D28),D28-D26,0),0) -> 0 | E29: =IFERROR(IF(ISNUMBER(E28),E28-E26,0),0) -> 0 | F29: 0 | G29: 0 | H29: 0 | I29: 0 | K29: =IF(ISNUMBER(K28),K28-K26,0) -> 0
B30: 2024-05-12 | C30: 0 | J30: =SUM(C30,E31:I31) -> 0 | M30: =IF(B30<TODAY(),_xlfn.IFS(ISNUMBER(F30),"ГРП-2 (в работе)",ISBLANK(F30),"ГРП-2 (в резерве)",ISTEXT(F30),"ГРП-2 (в ремонте)")," ") ->  | N30: =IF(B30<TODAY(),_xlfn.IFS(ISNUMBER(E30),"ГРП-1 (в работе)",ISBLANK(E30),"ГРП-1 (в резерве)",ISTEXT(E30),"ГРП-1 (в ремонте)")," ") ->  | O30: =IF(B30<TODAY(),_xlfn.IFS(ISNUMBER(G30),"ГРП-3 (в работе)",ISTEXT(G30),"ГРП-3 (в ремонте)",C30>0,"УПТПГ (в работе)",ISBLANK(G30),"ГРП-3 (в резерве)")," ") ->  | P30: =IF(B30<TODAY(),_xlfn.IFS(ISNUMBER(H30),"ГРП-4 (в работе)",ISBLANK(H30),"ГРП-4 (в резерве)",ISTEXT(H30),"ГРП-4 (в ремонте)")," ") ->  | Q30: =IF(B30<TODAY(),_xlfn.IFS(ISNUMBER(I30),"ГРП-5 (в работе)",ISBLANK(I30),"ГРП-5 (в резерве)",ISTEXT(I30),"ГРП-5 (в ремонте)")," ") -> 
D31: =IFERROR(IF(ISNUMBER(D30),D30-D28,0),0) -> 0 | E31: =IFERROR(IF(ISNUMBER(E30),E30-E28,0),0) -> 0 | F31: 0 | G31: 0 | H31: 0 | I31: 0 | K31: =IF(ISNUMBER(K30),K30-K28,0) -> 0
B32: 2024-05-13 | C32: 0 | J32: =SUM(C32,E33:I33) -> 0 | M32: =IF(B32<TODAY(),_xlfn.IFS(ISNUMBER(F32),"ГРП-2 (в работе)",ISBLANK(F32),"ГРП-2 (в резерве)",ISTEXT(F32),"ГРП-2 (в ремонте)")," ") ->  | N32: =IF(B32<TODAY(),_xlfn.IFS(ISNUMBER(E32),"ГРП-1 (в работе)",ISBLANK(E32),"ГРП-1 (в резерве)",ISTEXT(E32),"ГРП-1 (в ремонте)")," ") ->  | O32: =IF(B32<TODAY(),_xlfn.IFS(ISNUMBER(G32),"ГРП-3 (в работе)",ISTEXT(G32),"ГРП-3 (в ремонте)",C32>0,"УПТПГ (в работе)",ISBLANK(G32),"ГРП-3 (в резерве)")," ") ->  | P32: =IF(B32<TODAY(),_xlfn.IFS(ISNUMBER(H32),"ГРП-4 (в работе)",ISBLANK(H32),"ГРП-4 (в резерве)",ISTEXT(H32),"ГРП-4 (в ремонте)")," ") ->  | Q32: =IF(B32<TODAY(),_xlfn.IFS(ISNUMBER(I32),"ГРП-5 (в работе)",ISBLANK(I32),"ГРП-5 (в резерве)",ISTEXT(I32),"ГРП-5 (в ремонте)")," ") -> 
D33: =IFERROR(IF(ISNUMBER(D32),D32-D30,0),0) -> 0 | E33: =IFERROR(IF(ISNUMBER(E32),E32-E30,0),0) -> 0 | F33: 0 | G33: 0 | H33: 0 | I33: 0 | K33: =IF(ISNUMBER(K32),K32-K30,0) -> 0
B34: 2024-05-14 | C34: 0 | J34: =SUM(C34,E35:I35) -> 0 | M34: =IF(B34<TODAY(),_xlfn.IFS(ISNUMBER(F34),"ГРП-2 (в работе)",ISBLANK(F34),"ГРП-2 (в резерве)",ISTEXT(F34),"ГРП-2 (в ремонте)")," ") ->  | N34: =IF(B34<TODAY(),_xlfn.IFS(ISNUMBER(E34),"ГРП-1 (в работе)",ISBLANK(E34),"ГРП-1 (в резерве)",ISTEXT(E34),"ГРП-1 (в ремонте)")," ") ->  | O34: =IF(B34<TODAY(),_xlfn.IFS(ISNUMBER(G34),"ГРП-3 (в работе)",ISTEXT(G34),"ГРП-3 (в ремонте)",C34>0,"УПТПГ (в работе)",ISBLANK(G34),"ГРП-3 (в резерве)")," ") ->  | P34: =IF(B34<TODAY(),_xlfn.IFS(ISNUMBER(H34),"ГРП-4 (в работе)",ISBLANK(H34),"ГРП-4 (в резерве)",ISTEXT(H34),"ГРП-4 (в ремонте)")," ") ->  | Q34: =IF(B34<TODAY(),_xlfn.IFS(ISNUMBER(I34),"ГРП-5 (в работе)",ISBLANK(I34),"ГРП-5 (в резерве)",ISTEXT(I34),"ГРП-5 (в ремонте)")," ") -> 
D35: =IFERROR(IF(ISNUMBER(D34),D34-D32,0),0) -> 0 | E35: =IFERROR(IF(ISNUMBER(E34),E34-E32,0),0) -> 0 | F35: 0 | G35: 0 | H35: 0 | I35: 0 | K35: =IF(ISNUMBER(K34),K34-K32,0) -> 0
B36: 2024-05-15 | C36: 0 | J36: =SUM(C36,E37:I37) -> 0 | M36: =IF(B36<TODAY(),_xlfn.IFS(ISNUMBER(F36),"ГРП-2 (в работе)",ISBLANK(F36),"ГРП-2 (в резерве)",ISTEXT(F36),"ГРП-2 (в ремонте)")," ") ->  | N36: =IF(B36<TODAY(),_xlfn.IFS(ISNUMBER(E36),"ГРП-1 (в работе)",ISBLANK(E36),"ГРП-1 (в резерве)",ISTEXT(E36),"ГРП-1 (в ремонте)")," ") ->  | O36: =IF(B36<TODAY(),_xlfn.IFS(ISNUMBER(G36),"ГРП-3 (в работе)",ISTEXT(G36),"ГРП-3 (в ремонте)",C36>0,"УПТПГ (в работе)",ISBLANK(G36),"ГРП-3 (в резерве)")," ") ->  | P36: =IF(B36<TODAY(),_xlfn.IFS(ISNUMBER(H36),"ГРП-4 (в работе)",ISBLANK(H36),"ГРП-4 (в резерве)",ISTEXT(H36),"ГРП-4 (в ремонте)")," ") ->  | Q36: =IF(B36<TODAY(),_xlfn.IFS(ISNUMBER(I36),"ГРП-5 (в работе)",ISBLANK(I36),"ГРП-5 (в резерве)",ISTEXT(I36),"ГРП-5 (в ремонте)")," ") -> 
D37: =IFERROR(IF(ISNUMBER(D36),D36-D34,0),0) -> 0 | E37: =IFERROR(IF(ISNUMBER(E36),E36-E34,0),0) -> 0 | F37: 0 | G37: 0 | H37: 0 | I37: 0 | K37: =IF(ISNUMBER(K36),K36-K34,0) -> 0
B38: 2024-05-16 | C38: 0 | J38: =SUM(C38,E39:I39) -> 0 | M38: =IF(B38<TODAY(),_xlfn.IFS(ISNUMBER(F38),"ГРП-2 (в работе)",ISBLANK(F38),"ГРП-2 (в резерве)",ISTEXT(F38),"ГРП-2 (в ремонте)")," ") ->  | N38: =IF(B38<TODAY(),_xlfn.IFS(ISNUMBER(E38),"ГРП-1 (в работе)",ISBLANK(E38),"ГРП-1 (в резерве)",ISTEXT(E38),"ГРП-1 (в ремонте)")," ") ->  | O38: =IF(B38<TODAY(),_xlfn.IFS(ISNUMBER(G38),"ГРП-3 (в работе)",ISTEXT(G38),"ГРП-3 (в ремонте)",C38>0,"УПТПГ (в работе)",ISBLANK(G38),"ГРП-3 (в резерве)")," ") ->  | P38: =IF(B38<TODAY(),_xlfn.IFS(ISNUMBER(H38),"ГРП-4 (в работе)",ISBLANK(H38),"ГРП-4 (в резерве)",ISTEXT(H38),"ГРП-4 (в ремонте)")," ") ->  | Q38: =IF(B38<TODAY(),_xlfn.IFS(ISNUMBER(I38),"ГРП-5 (в работе)",ISBLANK(I38),"ГРП-5 (в резерве)",ISTEXT(I38),"ГРП-5 (в ремонте)")," ") -> 
D39: =IFERROR(IF(ISNUMBER(D38),D38-D36,0),0) -> 0 | E39: =IFERROR(IF(ISNUMBER(E38),E38-E36,0),0) -> 0 | F39: 0 | G39: 0 | H39: 0 | I39: 0 | K39: =IF(ISNUMBER(K38),K38-K36,0) -> 0
B40: 2024-05-17 | C40: 0 | J40: =SUM(C40,E41:I41) -> 0 | M40: =IF(B40<TODAY(),_xlfn.IFS(ISNUMBER(F40),"ГРП-2 (в работе)",ISBLANK(F40),"ГРП-2 (в резерве)",ISTEXT(F40),"ГРП-2 (в ремонте)")," ") ->  | N40: =IF(B40<TODAY(),_xlfn.IFS(ISNUMBER(E40),"ГРП-1 (в работе)",ISBLANK(E40),"ГРП-1 (в резерве)",ISTEXT(E40),"ГРП-1 (в ремонте)")," ") ->  | O40: =IF(B40<TODAY(),_xlfn.IFS(ISNUMBER(G40),"ГРП-3 (в работе)",ISTEXT(G40),"ГРП-3 (в ремонте)",C40>0,"УПТПГ (в работе)",ISBLANK(G40),"ГРП-3 (в резерве)")," ") ->  | P40: =IF(B40<TODAY(),_xlfn.IFS(ISNUMBER(H40),"ГРП-4 (в работе)",ISBLANK(H40),"ГРП-4 (в резерве)",ISTEXT(H40),"ГРП-4 (в ремонте)")," ") ->  | Q40: =IF(B40<TODAY(),_xlfn.IFS(ISNUMBER(I40),"ГРП-5 (в работе)",ISBLANK(I40),"ГРП-5 (в резерве)",ISTEXT(I40),"ГРП-5 (в ремонте)")," ") -> 
D41: =IFERROR(IF(ISNUMBER(D40),D40-D38,0),0) -> 0 | E41: =IFERROR(IF(ISNUMBER(E40),E40-E38,0),0) -> 0 | F41: 0 | G41: 0 | H41: 0 | I41: 0 | K41: =IF(ISNUMBER(K40),K40-K38,0) -> 0
B42: 2024-05-18 | C42: 0 | J42: =SUM(C42,E43:I43) -> 0 | M42: =IF(B42<TODAY(),_xlfn.IFS(ISNUMBER(F42),"ГРП-2 (в работе)",ISBLANK(F42),"ГРП-2 (в резерве)",ISTEXT(F42),"ГРП-2 (в ремонте)")," ") ->  | N42: =IF(B42<TODAY(),_xlfn.IFS(ISNUMBER(E42),"ГРП-1 (в работе)",ISBLANK(E42),"ГРП-1 (в резерве)",ISTEXT(E42),"ГРП-1 (в ремонте)")," ") ->  | O42: =IF(B42<TODAY(),_xlfn.IFS(ISNUMBER(G42),"ГРП-3 (в работе)",ISTEXT(G42),"ГРП-3 (в ремонте)",C42>0,"УПТПГ (в работе)",ISBLANK(G42),"ГРП-3 (в резерве)")," ") ->  | P42: =IF(B42<TODAY(),_xlfn.IFS(ISNUMBER(H42),"ГРП-4 (в работе)",ISBLANK(H42),"ГРП-4 (в резерве)",ISTEXT(H42),"ГРП-4 (в ремонте)")," ") ->  | Q42: =IF(B42<TODAY(),_xlfn.IFS(ISNUMBER(I42),"ГРП-5 (в работе)",ISBLANK(I42),"ГРП-5 (в резерве)",ISTEXT(I42),"ГРП-5 (в ремонте)")," ") -> 
D43: =IFERROR(IF(ISNUMBER(D42),D42-D40,0),0) -> 0 | E43: =IFERROR(IF(ISNUMBER(E42),E42-E40,0),0) -> 0 | F43: 0 | G43: 0 | H43: 0 | I43: 0 | K43: =IF(ISNUMBER(K42),K42-K40,0) -> 0
B44: 2024-05-19 | C44: 0 | J44: =SUM(C44,E45:I45) -> 0 | M44: =IF(B44<TODAY(),_xlfn.IFS(ISNUMBER(F44),"ГРП-2 (в работе)",ISBLANK(F44),"ГРП-2 (в резерве)",ISTEXT(F44),"ГРП-2 (в ремонте)")," ") ->  | N44: =IF(B44<TODAY(),_xlfn.IFS(ISNUMBER(E44),"ГРП-1 (в работе)",ISBLANK(E44),"ГРП-1 (в резерве)",ISTEXT(E44),"ГРП-1 (в ремонте)")," ") ->  | O44: =IF(B44<TODAY(),_xlfn.IFS(ISNUMBER(G44),"ГРП-3 (в работе)",ISTEXT(G44),"ГРП-3 (в ремонте)",C44>0,"УПТПГ (в работе)",ISBLANK(G44),"ГРП-3 (в резерве)")," ") ->  | P44: =IF(B44<TODAY(),_xlfn.IFS(ISNUMBER(H44),"ГРП-4 (в работе)",ISBLANK(H44),"ГРП-4 (в резерве)",ISTEXT(H44),"ГРП-4 (в ремонте)")," ") ->  | Q44: =IF(B44<TODAY(),_xlfn.IFS(ISNUMBER(I44),"ГРП-5 (в работе)",ISBLANK(I44),"ГРП-5 (в резерве)",ISTEXT(I44),"ГРП-5 (в ремонте)")," ") -> 
D45: =IFERROR(IF(ISNUMBER(D44),D44-D42,0),0) -> 0 | E45: =IFERROR(IF(ISNUMBER(E44),E44-E42,0),0) -> 0 | F45: 0 | G45: 0 | H45: 0 | I45: 0 | K45: =IF(ISNUMBER(K44),K44-K42,0) -> 0
B46: 2024-05-20 | C46: 0 | J46: =SUM(C46,E47:I47) -> 0 | M46: =IF(B46<TODAY(),_xlfn.IFS(ISNUMBER(F46),"ГРП-2 (в работе)",ISBLANK(F46),"ГРП-2 (в резерве)",ISTEXT(F46),"ГРП-2 (в ремонте)")," ") ->  | N46: =IF(B46<TODAY(),_xlfn.IFS(ISNUMBER(E46),"ГРП-1 (в работе)",ISBLANK(E46),"ГРП-1 (в резерве)",ISTEXT(E46),"ГРП-1 (в ремонте)")," ") ->  | O46: =IF(B46<TODAY(),_xlfn.IFS(ISNUMBER(G46),"ГРП-3 (в работе)",ISTEXT(G46),"ГРП-3 (в ремонте)",C46>0,"УПТПГ (в работе)",ISBLANK(G46),"ГРП-3 (в резерве)")," ") ->  | P46: =IF(B46<TODAY(),_xlfn.IFS(ISNUMBER(H46),"ГРП-4 (в работе)",ISBLANK(H46),"ГРП-4 (в резерве)",ISTEXT(H46),"ГРП-4 (в ремонте)")," ") ->  | Q46: =IF(B46<TODAY(),_xlfn.IFS(ISNUMBER(I46),"ГРП-5 (в работе)",ISBLANK(I46),"ГРП-5 (в резерве)",ISTEXT(I46),"ГРП-5 (в ремонте)")," ") -> 
D47: =IFERROR(IF(ISNUMBER(D46),D46-D44,0),0) -> 0 | E47: =IFERROR(IF(ISNUMBER(E46),E46-E44,0),0) -> 0 | F47: 0 | G47: 0 | H47: 0 | I47: 0 | K47: =IF(ISNUMBER(K46),K46-K44,0) -> 0
B48: 2024-05-21 | C48: 0 | J48: =SUM(C48,E49:I49) -> 0 | M48: =IF(B48<TODAY(),_xlfn.IFS(ISNUMBER(F48),"ГРП-2 (в работе)",ISBLANK(F48),"ГРП-2 (в резерве)",ISTEXT(F48),"ГРП-2 (в ремонте)")," ") ->  | N48: =IF(B48<TODAY(),_xlfn.IFS(ISNUMBER(E48),"ГРП-1 (в работе)",ISBLANK(E48),"ГРП-1 (в резерве)",ISTEXT(E48),"ГРП-1 (в ремонте)")," ") ->  | O48: =IF(B48<TODAY(),_xlfn.IFS(ISNUMBER(G48),"ГРП-3 (в работе)",ISTEXT(G48),"ГРП-3 (в ремонте)",C48>0,"УПТПГ (в работе)",ISBLANK(G48),"ГРП-3 (в резерве)")," ") ->  | P48: =IF(B48<TODAY(),_xlfn.IFS(ISNUMBER(H48),"ГРП-4 (в работе)",ISBLANK(H48),"ГРП-4 (в резерве)",ISTEXT(H48),"ГРП-4 (в ремонте)")," ") ->  | Q48: =IF(B48<TODAY(),_xlfn.IFS(ISNUMBER(I48),"ГРП-5 (в работе)",ISBLANK(I48),"ГРП-5 (в резерве)",ISTEXT(I48),"ГРП-5 (в ремонте)")," ") -> 
D49: =IFERROR(IF(ISNUMBER(D48),D48-D46,0),0) -> 0 | E49: =IFERROR(IF(ISNUMBER(E48),E48-E46,0),0) -> 0 | F49: 0 | G49: 0 | H49: 0 | I49: 0 | K49: =IF(ISNUMBER(K48),K48-K46,0) -> 0
B50: 2024-05-22 | C50: 0 | J50: =SUM(C50,E51:I51) -> 0 | M50: =IF(B50<TODAY(),_xlfn.IFS(ISNUMBER(F50),"ГРП-2 (в работе)",ISBLANK(F50),"ГРП-2 (в резерве)",ISTEXT(F50),"ГРП-2 (в ремонте)")," ") ->  | N50: =IF(B50<TODAY(),_xlfn.IFS(ISNUMBER(E50),"ГРП-1 (в работе)",ISBLANK(E50),"ГРП-1 (в резерве)",ISTEXT(E50),"ГРП-1 (в ремонте)")," ") ->  | O50: =IF(B50<TODAY(),_xlfn.IFS(ISNUMBER(G50),"ГРП-3 (в работе)",ISTEXT(G50),"ГРП-3 (в ремонте)",C50>0,"УПТПГ (в работе)",ISBLANK(G50),"ГРП-3 (в резерве)")," ") ->  | P50: =IF(B50<TODAY(),_xlfn.IFS(ISNUMBER(H50),"ГРП-4 (в работе)",ISBLANK(H50),"ГРП-4 (в резерве)",ISTEXT(H50),"ГРП-4 (в ремонте)")," ") ->  | Q50: =IF(B50<TODAY(),_xlfn.IFS(ISNUMBER(I50),"ГРП-5 (в работе)",ISBLANK(I50),"ГРП-5 (в резерве)",ISTEXT(I50),"ГРП-5 (в ремонте)")," ") -> 
D51: =IFERROR(IF(ISNUMBER(D50),D50-D48,0),0) -> 0 | E51: =IFERROR(IF(ISNUMBER(E50),E50-E48,0),0) -> 0 | F51: 0 | G51: 0 | H51: 0 | I51: 0 | K51: =IF(ISNUMBER(K50),K50-K48,0) -> 0
B52: 2024-05-23 | C52: 0 | J52: =SUM(C52,E53:I53) -> 0 | M52: =IF(B52<TODAY(),_xlfn.IFS(ISNUMBER(F52),"ГРП-2 (в работе)",ISBLANK(F52),"ГРП-2 (в резерве)",ISTEXT(F52),"ГРП-2 (в ремонте)")," ") ->  | N52: =IF(B52<TODAY(),_xlfn.IFS(ISNUMBER(E52),"ГРП-1 (в работе)",ISBLANK(E52),"ГРП-1 (в резерве)",ISTEXT(E52),"ГРП-1 (в ремонте)")," ") ->  | O52: =IF(B52<TODAY(),_xlfn.IFS(ISNUMBER(G52),"ГРП-3 (в работе)",ISTEXT(G52),"ГРП-3 (в ремонте)",C52>0,"УПТПГ (в работе)",ISBLANK(G52),"ГРП-3 (в резерве)")," ") ->  | P52: =IF(B52<TODAY(),_xlfn.IFS(ISNUMBER(H52),"ГРП-4 (в работе)",ISBLANK(H52),"ГРП-4 (в резерве)",ISTEXT(H52),"ГРП-4 (в ремонте)")," ") ->  | Q52: =IF(B52<TODAY(),_xlfn.IFS(ISNUMBER(I52),"ГРП-5 (в работе)",ISBLANK(I52),"ГРП-5 (в резерве)",ISTEXT(I52),"ГРП-5 (в ремонте)")," ") -> 
D53: =IFERROR(IF(ISNUMBER(D52),D52-D50,0),0) -> 0 | E53: =IFERROR(IF(ISNUMBER(E52),E52-E50,0),0) -> 0 | F53: 0 | G53: 0 | H53: 0 | I53: 0 | K53: =IF(ISNUMBER(K52),K52-K50,0) -> 0
B54: 2024-05-24 | C54: 0 | J54: =SUM(C54,E55:I55) -> 0 | M54: =IF(B54<TODAY(),_xlfn.IFS(ISNUMBER(F54),"ГРП-2 (в работе)",ISBLANK(F54),"ГРП-2 (в резерве)",ISTEXT(F54),"ГРП-2 (в ремонте)")," ") ->  | N54: =IF(B54<TODAY(),_xlfn.IFS(ISNUMBER(E54),"ГРП-1 (в работе)",ISBLANK(E54),"ГРП-1 (в резерве)",ISTEXT(E54),"ГРП-1 (в ремонте)")," ") ->  | O54: =IF(B54<TODAY(),_xlfn.IFS(ISNUMBER(G54),"ГРП-3 (в работе)",ISTEXT(G54),"ГРП-3 (в ремонте)",C54>0,"УПТПГ (в работе)",ISBLANK(G54),"ГРП-3 (в резерве)")," ") ->  | P54: =IF(B54<TODAY(),_xlfn.IFS(ISNUMBER(H54),"ГРП-4 (в работе)",ISBLANK(H54),"ГРП-4 (в резерве)",ISTEXT(H54),"ГРП-4 (в ремонте)")," ") ->  | Q54: =IF(B54<TODAY(),_xlfn.IFS(ISNUMBER(I54),"ГРП-5 (в работе)",ISBLANK(I54),"ГРП-5 (в резерве)",ISTEXT(I54),"ГРП-5 (в ремонте)")," ") -> 
D55: =IFERROR(IF(ISNUMBER(D54),D54-D52,0),0) -> 0 | E55: =IFERROR(IF(ISNUMBER(E54),E54-E52,0),0) -> 0 | F55: 0 | G55: 0 | H55: 0 | I55: 0 | K55: =IF(ISNUMBER(K54),K54-K52,0) -> 0
B56: 2024-05-25 | C56: 0 | J56: =SUM(C56,E57:I57) -> 0 | M56: =IF(B56<TODAY(),_xlfn.IFS(ISNUMBER(F56),"ГРП-2 (в работе)",ISBLANK(F56),"ГРП-2 (в резерве)",ISTEXT(F56),"ГРП-2 (в ремонте)")," ") ->  | N56: =IF(B56<TODAY(),_xlfn.IFS(ISNUMBER(E56),"ГРП-1 (в работе)",ISBLANK(E56),"ГРП-1 (в резерве)",ISTEXT(E56),"ГРП-1 (в ремонте)")," ") ->  | O56: =IF(B56<TODAY(),_xlfn.IFS(ISNUMBER(G56),"ГРП-3 (в работе)",ISTEXT(G56),"ГРП-3 (в ремонте)",C56>0,"УПТПГ (в работе)",ISBLANK(G56),"ГРП-3 (в резерве)")," ") ->  | P56: =IF(B56<TODAY(),_xlfn.IFS(ISNUMBER(H56),"ГРП-4 (в работе)",ISBLANK(H56),"ГРП-4 (в резерве)",ISTEXT(H56),"ГРП-4 (в ремонте)")," ") ->  | Q56: =IF(B56<TODAY(),_xlfn.IFS(ISNUMBER(I56),"ГРП-5 (в работе)",ISBLANK(I56),"ГРП-5 (в резерве)",ISTEXT(I56),"ГРП-5 (в ремонте)")," ") -> 
D57: =IFERROR(IF(ISNUMBER(D56),D56-D54,0),0) -> 0 | E57: =IFERROR(IF(ISNUMBER(E56),E56-E54,0),0) -> 0 | F57: 0 | G57: 0 | H57: 0 | I57: 0 | K57: =IF(ISNUMBER(K56),K56-K54,0) -> 0
B58: 2024-05-26 | C58: 0 | J58: =SUM(C58,E59:I59) -> 0 | M58: =IF(B58<TODAY(),_xlfn.IFS(ISNUMBER(F58),"ГРП-2 (в работе)",ISBLANK(F58),"ГРП-2 (в резерве)",ISTEXT(F58),"ГРП-2 (в ремонте)")," ") ->  | N58: =IF(B58<TODAY(),_xlfn.IFS(ISNUMBER(E58),"ГРП-1 (в работе)",ISBLANK(E58),"ГРП-1 (в резерве)",ISTEXT(E58),"ГРП-1 (в ремонте)")," ") ->  | O58: =IF(B58<TODAY(),_xlfn.IFS(ISNUMBER(G58),"ГРП-3 (в работе)",ISTEXT(G58),"ГРП-3 (в ремонте)",C58>0,"УПТПГ (в работе)",ISBLANK(G58),"ГРП-3 (в резерве)")," ") ->  | P58: =IF(B58<TODAY(),_xlfn.IFS(ISNUMBER(H58),"ГРП-4 (в работе)",ISBLANK(H58),"ГРП-4 (в резерве)",ISTEXT(H58),"ГРП-4 (в ремонте)")," ") ->  | Q58: =IF(B58<TODAY(),_xlfn.IFS(ISNUMBER(I58),"ГРП-5 (в работе)",ISBLANK(I58),"ГРП-5 (в резерве)",ISTEXT(I58),"ГРП-5 (в ремонте)")," ") -> 
D59: =IFERROR(IF(ISNUMBER(D58),D58-D56,0),0) -> 0 | E59: =IFERROR(IF(ISNUMBER(E58),E58-E56,0),0) -> 0 | F59: 0 | G59: 0 | H59: 0 | I59: 0 | K59: =IF(ISNUMBER(K58),K58-K56,0) -> 0
B60: 2024-05-27 | C60: 0 | J60: =SUM(C60,E61:I61) -> 0 | M60: =IF(B60<TODAY(),_xlfn.IFS(ISNUMBER(F60),"ГРП-2 (в работе)",ISBLANK(F60),"ГРП-2 (в резерве)",ISTEXT(F60),"ГРП-2 (в ремонте)")," ") ->  | N60: =IF(B60<TODAY(),_xlfn.IFS(ISNUMBER(E60),"ГРП-1 (в работе)",ISBLANK(E60),"ГРП-1 (в резерве)",ISTEXT(E60),"ГРП-1 (в ремонте)")," ") ->  | O60: =IF(B60<TODAY(),_xlfn.IFS(ISNUMBER(G60),"ГРП-3 (в работе)",ISTEXT(G60),"ГРП-3 (в ремонте)",C60>0,"УПТПГ (в работе)",ISBLANK(G60),"ГРП-3 (в резерве)")," ") ->  | P60: =IF(B60<TODAY(),_xlfn.IFS(ISNUMBER(H60),"ГРП-4 (в работе)",ISBLANK(H60),"ГРП-4 (в резерве)",ISTEXT(H60),"ГРП-4 (в ремонте)")," ") ->  | Q60: =IF(B60<TODAY(),_xlfn.IFS(ISNUMBER(I60),"ГРП-5 (в работе)",ISBLANK(I60),"ГРП-5 (в резерве)",ISTEXT(I60),"ГРП-5 (в ремонте)")," ") -> 
D61: =IFERROR(IF(ISNUMBER(D60),D60-D58,0),0) -> 0 | E61: =IFERROR(IF(ISNUMBER(E60),E60-E58,0),0) -> 0 | F61: 0 | G61: 0 | H61: 0 | I61: 0 | K61: =IF(ISNUMBER(K60),K60-K58,0) -> 0
B62: 2024-05-28 | C62: 0 | J62: =SUM(C62,E63:I63) -> 0 | M62: =IF(B62<TODAY(),_xlfn.IFS(ISNUMBER(F62),"ГРП-2 (в работе)",ISBLANK(F62),"ГРП-2 (в резерве)",ISTEXT(F62),"ГРП-2 (в ремонте)")," ") ->  | N62: =IF(B62<TODAY(),_xlfn.IFS(ISNUMBER(E62),"ГРП-1 (в работе)",ISBLANK(E62),"ГРП-1 (в резерве)",ISTEXT(E62),"ГРП-1 (в ремонте)")," ") ->  | O62: =IF(B62<TODAY(),_xlfn.IFS(ISNUMBER(G62),"ГРП-3 (в работе)",ISTEXT(G62),"ГРП-3 (в ремонте)",C62>0,"УПТПГ (в работе)",ISBLANK(G62),"ГРП-3 (в резерве)")," ") ->  | P62: =IF(B62<TODAY(),_xlfn.IFS(ISNUMBER(H62),"ГРП-4 (в работе)",ISBLANK(H62),"ГРП-4 (в резерве)",ISTEXT(H62),"ГРП-4 (в ремонте)")," ") ->  | Q62: =IF(B62<TODAY(),_xlfn.IFS(ISNUMBER(I62),"ГРП-5 (в работе)",ISBLANK(I62),"ГРП-5 (в резерве)",ISTEXT(I62),"ГРП-5 (в ремонте)")," ") -> 
D63: =IFERROR(IF(ISNUMBER(D62),D62-D60,0),0) -> 0 | E63: =IFERROR(IF(ISNUMBER(E62),E62-E60,0),0) -> 0 | F63: 0 | G63: 0 | H63: 0 | I63: 0 | K63: =IF(ISNUMBER(K62),K62-K60,0) -> 0
B64: 2024-05-29 | C64: 0 | J64: =SUM(C64,E65:I65) -> 0 | M64: =IF(B64<TODAY(),_xlfn.IFS(ISNUMBER(F64),"ГРП-2 (в работе)",ISBLANK(F64),"ГРП-2 (в резерве)",ISTEXT(F64),"ГРП-2 (в ремонте)")," ") ->  | N64: =IF(B64<TODAY(),_xlfn.IFS(ISNUMBER(E64),"ГРП-1 (в работе)",ISBLANK(E64),"ГРП-1 (в резерве)",ISTEXT(E64),"ГРП-1 (в ремонте)")," ") ->  | O64: =IF(B64<TODAY(),_xlfn.IFS(ISNUMBER(G64),"ГРП-3 (в работе)",ISTEXT(G64),"ГРП-3 (в ремонте)",C64>0,"УПТПГ (в работе)",ISBLANK(G64),"ГРП-3 (в резерве)")," ") ->  | P64: =IF(B64<TODAY(),_xlfn.IFS(ISNUMBER(H64),"ГРП-4 (в работе)",ISBLANK(H64),"ГРП-4 (в резерве)",ISTEXT(H64),"ГРП-4 (в ремонте)")," ") ->  | Q64: =IF(B64<TODAY(),_xlfn.IFS(ISNUMBER(I64),"ГРП-5 (в работе)",ISBLANK(I64),"ГРП-5 (в резерве)",ISTEXT(I64),"ГРП-5 (в ремонте)")," ") -> 
D65: =IFERROR(IF(ISNUMBER(D64),D64-D62,0),0) -> 0 | E65: =IFERROR(IF(ISNUMBER(E64),E64-E62,0),0) -> 0 | F65: 0 | G65: 0 | H65: 0 | I65: 0 | K65: =IF(ISNUMBER(K64),K64-K62,0) -> 0
B66: 2024-05-30 | C66: 0 | J66: =SUM(C66,E67:I67) -> 0 | M66: =IF(B66<TODAY(),_xlfn.IFS(ISNUMBER(F66),"ГРП-2 (в работе)",ISBLANK(F66),"ГРП-2 (в резерве)",ISTEXT(F66),"ГРП-2 (в ремонте)")," ") ->  | N66: =IF(B66<TODAY(),_xlfn.IFS(ISNUMBER(E66),"ГРП-1 (в работе)",ISBLANK(E66),"ГРП-1 (в резерве)",ISTEXT(E66),"ГРП-1 (в ремонте)")," ") ->  | O66: =IF(B66<TODAY(),_xlfn.IFS(ISNUMBER(G66),"ГРП-3 (в работе)",ISTEXT(G66),"ГРП-3 (в ремонте)",C66>0,"УПТПГ (в работе)",ISBLANK(G66),"ГРП-3 (в резерве)")," ") ->  | P66: =IF(B66<TODAY(),_xlfn.IFS(ISNUMBER(H66),"ГРП-4 (в работе)",ISBLANK(H66),"ГРП-4 (в резерве)",ISTEXT(H66),"ГРП-4 (в ремонте)")," ") ->  | Q66: =IF(B66<TODAY(),_xlfn.IFS(ISNUMBER(I66),"ГРП-5 (в работе)",ISBLANK(I66),"ГРП-5 (в резерве)",ISTEXT(I66),"ГРП-5 (в ремонте)")," ") -> 
D67: =IFERROR(IF(ISNUMBER(D66),D66-D64,0),0) -> 0 | E67: =IFERROR(IF(ISNUMBER(E66),E66-E64,0),0) -> 0 | F67: 0 | G67: 0 | H67: 0 | I67: 0 | K67: =IF(ISNUMBER(K66),K66-K64,0) -> 0
B68: 2024-05-31 | C68: 0 | J68: =SUM(C68,E69:I69) -> 0 | M68: =IF(B68<TODAY(),_xlfn.IFS(ISNUMBER(F68),"ГРП-2 (в работе)",ISBLANK(F68),"ГРП-2 (в резерве)",ISTEXT(F68),"ГРП-2 (в ремонте)")," ") ->  | N68: =IF(B68<TODAY(),_xlfn.IFS(ISNUMBER(E68),"ГРП-1 (в работе)",ISBLANK(E68),"ГРП-1 (в резерве)",ISTEXT(E68),"ГРП-1 (в ремонте)")," ") ->  | O68: =IF(B68<TODAY(),_xlfn.IFS(ISNUMBER(G68),"ГРП-3 (в работе)",ISTEXT(G68),"ГРП-3 (в ремонте)",C68>0,"УПТПГ (в работе)",ISBLANK(G68),"ГРП-3 (в резерве)")," ") ->  | P68: =IF(B68<TODAY(),_xlfn.IFS(ISNUMBER(H68),"ГРП-4 (в работе)",ISBLANK(H68),"ГРП-4 (в резерве)",ISTEXT(H68),"ГРП-4 (в ремонте)")," ") ->  | Q68: =IF(B68<TODAY(),_xlfn.IFS(ISNUMBER(I68),"ГРП-5 (в работе)",ISBLANK(I68),"ГРП-5 (в резерве)",ISTEXT(I68),"ГРП-5 (в ремонте)")," ") -> 
D69: =IFERROR(IF(ISNUMBER(D68),D68-D66,0),0) -> 0 | E69: =IFERROR(IF(ISNUMBER(E68),E68-E66,0),0) -> 0 | F69: 0 | G69: 0 | H69: 0 | I69: 0 | K69: =IF(ISNUMBER(K68),K68-K66,0) -> 0
B70: ИТОГО | C70: =SUM(C8:C69) -> 0 | D70: =SUM(D9,D11,D13,D15,D17,D19,D21,D23,D25,D27,D29,D31,D33,D35,D37,D39,D41,D43,D45,D47,D49,D51,D53,D55,D57,D59,D61,D63,D65,D67,D69) -> 4080703 | E70: 373779 | F70: 1663927 | G70: 831843 | H70: 0 | I70: 1191000 | J70: =SUM(J8:J69) -> 4060549 | K70: =SUM(K9,K11,K13,K15,K17,K19,K21,K23,K25,K27,K29,K31,K33,K35,K37,K39,K41,K43,K45,K47,K49,K51,K53,K55,K57,K59,K61,K63,K65,K67,K69) -> 0 | L70: =SUM(L8:L69) -> 4080580
J71: =SUM(C70:I71) -> 8141252

Sheet Расход газа (2) (hidden)
B4: Суточная ведомость Расхода газа | L4: Линия потребления газа
B6: Дата | C6: БПТПГ (УПГ-М) | D6: ГРП-1 | E6: ГРП-2 | F6: ГРП-3 | G6: ГРП-4 | H6: ГРП-5 | I6: Суммарный расход ГРП | J6: Общий входной расход | K6: Сводка УКПГ ЦПГ-1
B7: Время 05:00 | C7: Сводка УКПГ ЦПГ-1 | D7: номер серия счетчика | E7: номер серия счетчика | F7: номер серия счетчика | G7: номер серия счетчика | H7: номер серия счетчика | I7: м3/сутки | J7: номер серия счетчика | K7: м3/сутки | L7: Урал №1,№2 №3, №4 | M7: ПАЭС №3, №4 | N7: Сатурн №6, №7 | O7: МоторСич №9, №10 | P7: ЭГЭС №11, №12
B8: 2024-03-01 | C8: 0 | D8: 5848948 | E8: 136132200 | F8: 63067810 | G8: 26628230 | H8: 145925300 | I8: =SUM(C8,D9,E9,F9,G9,H9) -> 0 | J8: 528386400 | L8: ГРП-2 (в работе) | M8: ГРП-1 (в работе) | N8: ГРП-3 (в работе) | O8: ГРП-4 (в работе) | P8: ГРП-5 (в работе)
D9: =D10-D8 -> 0 | E9: =E10-E8 -> 0 | F9: 0 | G9: 0 | H9: 0 | J9: 0
A10: 17:00:00 | B10: 2024-03-02 | C10: 0 | D10: 5848948 | E10: 136132200 | F10: 63067810 | G10: 26628230 | H10: 145925300 | I10: =SUM(C10,D11,E11,F11,G11,H11) -> 222330 | J10: 528386400 | K10: 263440
D11: =IF(ISNUMBER(D12),D12-D10,0) -> 0 | E11: =IF(ISNUMBER(E12),E12-E10,0) -> 77400 | F11: =IF(ISNUMBER(F12),F12-F10,0) -> 38650 | G11: 28980 | H11: 77300 | J11: 308400
A12: 05:00:00 | B12: 2024-03-03 | D12: 5848948 | E12: 136209600 | F12: 63106460 | G12: 26657210 | H12: 146002600 | I12: =SUM(C12,D13,E13,F13,G13,H13) -> 0 | J12: 528694800 | K12: 257913
D13: =IF(ISNUMBER(D14),D14-D12,0) -> 0 | E13: =IF(ISNUMBER(E14),E14-E12,0) -> 0 | F13: 0 | G13: 0 | H13: 0 | J13: =IF(ISNUMBER(J14),J14-J12,0) -> 0
B14: 2024-03-04 | I14: =SUM(C14,D15,E15,F15,G15,H15) -> 0
J15: 0
B16: 2024-03-05 | I16: =SUM(C16,D17,E17,F17,G17,H17) -> 0
J17: 0
B18: 2024-03-06 | I18: =SUM(C18,D19,E19,F19,G19,H19) -> 0
J19: 0
B20: 2024-03-07 | I20: =SUM(C20,D21,E21,F21,G21,H21) -> 0
J21: 0
B22: 2024-03-08 | I22: =SUM(C22,D23,E23,F23,G23,H23) -> 0
J23: 0
B24: 2024-03-09 | I24: =SUM(C24,D25,E25,F25,G25,H25) -> 0
J25: 0
B26: 2024-03-10 | I26: =SUM(C26,D27,E27,F27,G27,H27) -> 0
J27: 0
B28: 2024-03-11 | I28: =SUM(C28,D29,E29,F29,G29,H29) -> 0
J29: 0
B30: 2024-03-12 | I30: =SUM(C30,D31,E31,F31,G31,H31) -> 0
J31: 0
B32: 2024-03-13 | I32: =SUM(C32,D33,E33,F33,G33,H33) -> 0
J33: 0
B34: 2024-03-14 | I34: =SUM(C34,D35,E35,F35,G35,H35) -> 0
J35: 0
B36: 2024-03-15 | I36: =SUM(C36,D37,E37,F37,G37,H37) -> 0
J37: 0
B38: 2024-03-16 | I38: =SUM(C38,D39,E39,F39,G39,H39) -> 0
J39: 0
B40: 2024-03-17 | I40: =SUM(C40,D41,E41,F41,G41,H41) -> 0
J41: 0
B42: 2024-03-18 | I42: =SUM(C42,D43,E43,F43,G43,H43) -> 0
J43: 0
B44: 2024-03-19 | I44: =SUM(C44,D45,E45,F45,G45,H45) -> 0
J45: 0
B46: 2024-03-20 | I46: =SUM(C46,D47,E47,F47,G47,H47) -> 0
J47: 0
B48: 2024-03-21 | I48: =SUM(C48,D49,E49,F49,G49,H49) -> 0
J49: 0
B50: 2024-03-22 | I50: =SUM(C50,D51,E51,F51,G51,H51) -> 0
J51: 0
B52: 2024-03-23 | I52: =SUM(C52,D53,E53,F53,G53,H53) -> 0
J53: 0
B54: 2024-03-24 | I54: =SUM(C54,D55,E55,F55,G55,H55) -> 0
J55: 0
B56: 2024-03-25 | I56: =SUM(C56,D57,E57,F57,G57,H57) -> 0
J57: 0
B58: 2024-03-26 | I58: =SUM(C58,D59,E59,F59,G59,H59) -> 0
J59: 0
B60: 2024-03-27 | I60: =SUM(C60,D61,E61,F61,G61,H61) -> 0
J61: 0
B62: 2024-03-28 | I62: =SUM(C62,D63,E63,F63,G63,H63) -> 0
J63: 0
B64: 2024-03-29 | I64: =SUM(C64,D65,E65,F65,G65,H65) -> 0
J65: 0
B66: 2024-03-30 | I66: =SUM(C66,D67,E67,F67,G67,H67) -> 0
J67: 0
B68: 2024-03-31 | I68: =SUM(C68,D69,E69,F69,G69,H69) -> 0
B70: ИТОГО | C70: =SUM(C8:C69) -> 0 | D70: =SUM(D9,D11,D13,D15,D17,D19,D21,D23,D25,D27,D29,D31,D33,D35,D37,D39,D41,D43,D45,D47,D49,D51,D53,D55,D57,D59,D61,D63,D65,D67,D69) -> 0 | E70: =SUM(E9,E11,E13,E15,E17,E19,E21,E23,E25,E27,E29,E31,E33,E35,E37,E39,E41,E43,E45,E47,E49,E51,E53,E55,E57,E59,E61,E63,E65,E67,E69) -> 77400 | F70: 38650 | G70: 28980 | H70: 77300 | I70: =SUM(I8:I69) -> 222330 | J70: =SUM(J9,J11,J13,J15,J17,J19,J21,J23,J25,J27,J29,J31,J33,J35,J37,J39,J41,J43,J45,J47,J49,J51,J53,J55,J57,J59,J61,J63,J65,J67,J69) -> 308400 | K70: =SUM(K8:K69) -> 521353
I71: =SUM(C70:H71) -> 222330
I73: =J70-I71 -> 86070 | K73: =K12-J11 -> -50487 | L73: Разница показаний ЦПГ-1 с входным учетом ГРП
I74: =J70/I71 -> 1.387127243 | K74: =K12-I71 -> 35583 | L74: Разница показаний ЦПГ-1 с сумарным расходом ГРП-1,2,3,4,5
K75: за 12 часов 257913
